bitfinex/quotes_BTCUSD_20251031
["timestamp","ask_amount","ask_price","bid_price","bid_amount"]
[1761940390885,0.2319092,110200.0,110190.0,0.05573155]
[1761940391112,0.2469592,110200.0,110190.0,0.05573155]
[1761940391540,0.2319092,110200.0,110190.0,0.05573155]
[1761940391794,0.65682682,110200.0,110190.0,0.23723622]
[1761940391992,0.65682682,110200.0,110190.0,0.05573155]
[1761940392419,0.65682682,110200.0,110190.0,0.23723622]
[1761940393604,0.2319092,110200.0,110190.0,0.23723622]
[1761940393806,0.050421,110200.0,110190.0,0.23723622]
[1761940394023,0.2319092,110200.0,110190.0,0.23723622]
[1761940394684,0.19572692,110200.0,110190.0,0.23723622]
[1761940394911,0.01423872,110200.0,110190.0,0.78571355]
[1761940395126,0.01436422,110220.0,110210.0,0.18147173]
[1761940395342,0.19581949,110220.0,110210.0,0.23117173]
[1761940396020,0.18146599,110230.0,110220.0,0.02654]
[1761940396243,0.60638361,110230.0,110220.0,0.0497]
[1761940396472,0.64256589,110230.0,110220.0,0.0497]
[1761940397839,0.64256589,110230.0,110220.0,0.23115527]
[1761940398075,0.64256589,110230.0,110220.0,0.0497]
[1761940398291,0.66832589,110230.0,110220.0,0.02654]
[1761940398500,0.22700827,110230.0,110220.0,0.05012]
[1761940398707,0.65192589,110230.0,110220.0,0.05012]
[1761940399554,0.66832589,110230.0,110220.0,0.05012]
[1761940400401,0.65192589,110230.0,110220.0,0.05012]
[1761940402351,0.66832589,110230.0,110220.0,0.05012]
[1761940402557,0.66832589,110230.0,110220.0,0.02654]
[1761940402800,0.66832589,110230.0,110220.0,0.05012]
[1761940403299,0.65192589,110230.0,110220.0,0.05012]
[1761940404345,0.66832589,110230.0,110220.0,0.02654]
[1761940404731,0.66832589,110230.0,110220.0,0.05012]
[1761940404949,0.65192589,110230.0,110220.0,0.05012]
[1761940405372,0.65192589,110230.0,110220.0,0.23157527]
[1761940405575,0.65192589,110230.0,110220.0,0.05012]
[1761940405938,0.65192589,110230.0,110220.0,0.23157527]
[1761940406691,0.65192589,110230.0,110220.0,0.05012]
[1761940408018,0.66832589,110230.0,110220.0,0.05012]
[1761940408432,0.25764348,110230.0,110220.0,0.05012]
[1761940408631,0.6825611,110230.0,110220.0,0.05012]
[1761940408870,0.6661611,110230.0,110220.0,0.05012]
[1761940409074,0.65192589,110230.0,110220.0,0.05012]
[1761940409716,0.66615559,110230.0,110220.0,0.05012]
[1761940409910,0.68255559,110230.0,110220.0,0.05012]
[1761940410334,0.66615559,110230.0,110220.0,0.05012]
[1761940411039,0.65779559,110230.0,110220.0,0.23157527]
[1761940411460,0.0152297,110230.0,110220.0,0.23157527]
[1761940411690,0.1966685,110230.0,110220.0,0.23157527]
[1761940412129,0.21090317,110230.0,110220.0,0.23157527]
[1761940412574,0.20990317,110230.0,110220.0,0.23157527]
[1761940412753,0.20990317,110230.0,110220.0,0.23257527]
[1761940413839,0.02846437,110230.0,110220.0,0.23257527]
[1761940414059,0.20990317,110230.0,110220.0,0.23257527]
[1761940415402,0.20990317,110230.0,110220.0,0.05112]
[1761940415612,0.63482079,110230.0,110220.0,0.05112]
[1761940417396,0.63482079,110230.0,110220.0,0.23257527]
[1761940417607,0.63482079,110230.0,110220.0,0.05112]
[1761940418165,0.63482079,110230.0,110220.0,0.23257527]
[1761940419070,0.62059109,110230.0,110220.0,0.23257527]
[1761940419438,0.62059109,110230.0,110220.0,0.05112]
[1761940419642,0.19567347,110230.0,110220.0,0.05112]
[1761940419847,0.62059109,110230.0,110220.0,0.05112]
[1761940420254,0.59685713,110230.0,110220.0,0.05112]
[1761940420481,0.1814388,110230.0,110220.0,0.05112]
[1761940420693,0.60635642,110230.0,110220.0,0.05112]
[1761940426093,0.63074642,110230.0,110220.0,0.0123]
[1761940426323,0.63074642,110230.0,110220.0,0.02802]
[1761940426521,0.6669287,110230.0,110220.0,0.001]
[1761940426719,0.6917887,110230.0,110220.0,0.001]
[1761940427421,1.11670632,110230.0,110220.0,0.001]
[1761940427630,0.6917887,110230.0,110220.0,0.001]
[1761940429153,0.21763755,110220.0,110210.0,0.06199227]
[1761940429360,0.64255517,110220.0,110210.0,0.06213618]
[1761940429580,0.64255517,110220.0,110210.0,0.07785618]
[1761940430263,0.65858517,110220.0,110210.0,0.07885618]
[1761940430473,0.65091517,110220.0,110210.0,0.11087852]
[1761940431101,0.65091517,110220.0,110210.0,0.07885618]
[1761940431533,0.66694517,110220.0,110210.0,0.07885618]
[1761940433290,0.66694517,110220.0,110210.0,0.05484618]
[1761940433949,0.66694517,110220.0,110210.0,0.07885618]
[1761940434995,1.09186279,110220.0,110210.0,0.05484618]
[1761940435209,1.11672279,110220.0,110210.0,0.02751618]
[1761940436941,1.11047255,110220.0,110210.0,0.02751618]
[1761940439372,1.08561255,110220.0,110210.0,0.05484618]
[1761940440303,1.11047255,110220.0,110210.0,0.02751618]
[1761940441379,1.08561255,110220.0,110210.0,0.02751618]
[1761940441579,1.11047255,110220.0,110210.0,0.02751618]
[1761940442430,0.23577731,110220.0,110210.0,0.02651618]
[1761940442663,0.19567556,110230.0,110220.0,0.05134]
[1761940442896,0.19049392,110240.0,110230.0,0.1814388]
[1761940443117,0.19047618,110250.0,110230.0,0.5727788]
[1761940443335,0.19047618,110250.0,110240.0,0.14287737]
[1761940443783,0.22665846,110250.0,110240.0,0.32429972]
[1761940444006,0.19047618,110250.0,110240.0,0.14287737]
[1761940444876,0.19047618,110250.0,110240.0,0.14387737]
[1761940445095,0.22665846,110250.0,110240.0,0.14387737]
[1761940445800,0.19047618,110250.0,110240.0,0.14387737]
[1761940446015,0.18140589,110250.0,110240.0,0.32529972]
[1761940446232,0.18143402,110260.0,110250.0,0.18140434]
[1761940446233,0.18138971,110260.0,110250.0,0.18140434]
[1761940446455,0.18138944,110260.0,110250.0,0.05134]
[1761940446901,0.65851934,110260.0,110250.0,0.02733]
[1761940447166,0.65851934,110260.0,110240.0,0.13616971]
[1761940447167,0.18140589,110250.0,110240.0,0.03562]
[1761940447387,0.63036116,110250.0,110240.0,0.02733]
[1761940447624,0.61433116,110250.0,110240.0,0.05134]
[1761940448083,0.18142235,110240.0,110230.0,0.03562]
[1761940448301,1.03045679,110240.0,110230.0,0.03562]
[1761940448535,0.60593957,110240.0,110230.0,0.05134]
[1761940450104,0.1814388,110230.0,110220.0,0.49917971]
[1761940450331,1.10754552,110230.0,110220.0,0.03202234]
[1761940450562,0.18145527,110220.0,110210.0,0.56199227]
[1761940450808,0.21762108,110230.0,110220.0,0.01572]
[1761940451033,0.1814388,110230.0,110220.0,0.02733]
[1761940451257,0.1814388,110230.0,110220.0,0.23279383]
[1761940451479,0.61501068,110240.0,110220.0,0.23379383]
[1761940451701,0.65119296,110240.0,110230.0,0.2211688]
[1761940451935,0.61501068,110240.0,110230.0,0.2211688]
[1761940452149,0.61501068,110240.0,110230.0,0.03973]
[1761940452371,0.19049346,110240.0,110230.0,0.2211688]
[1761940452593,0.61501068,110240.0,110230.0,0.03973]
[1761940453323,0.61601068,110240.0,110230.0,0.03973]
[1761940453761,0.61501068,110240.0,110230.0,0.03973]
[1761940453971,0.61501068,110240.0,110230.0,0.05115]
[1761940454426,0.61601068,110240.0,110230.0,0.05115]
[1761940455250,0.61601068,110240.0,110230.0,0.2325888]
[1761940455459,0.61601068,110240.0,110230.0,0.05115]
[1761940456527,0.61501068,110240.0,110230.0,0.05115]
[1761940456759,0.61501068,110240.0,110230.0,0.05215]
[1761940458937,1.0395279,110240.0,110230.0,0.05215]
[1761940459151,0.84334731,110240.0,110230.0,0.05215]
[1761940459367,1.02476966,110240.0,110230.0,0.05215]
[1761940459610,0.18142235,110240.0,110230.0,0.05215]
[1761940459822,0.60593957,110240.0,110230.0,0.05215]
[1761940460037,0.60593957,110240.0,110230.0,0.2335888]
[1761940460267,0.60593957,110240.0,110230.0,0.05215]
[1761940460691,0.18142235,110240.0,110230.0,0.05215]
[1761940460988,0.60593957,110240.0,110230.0,0.05215]
[1761940461197,1.04579679,110240.0,110230.0,0.05215]
[1761940463293,1.50649629,110240.0,110230.0,0.001]
[1761940463507,1.52949629,110240.0,110230.0,0.001]
[1761940463730,1.55676431,110240.0,110230.0,0.001]
[1761940464305,0.18145527,110220.0,110210.0,0.03798227]
[1761940464504,1.09037199,110220.0,110210.0,0.05423227]
[1761940464740,1.53788921,110220.0,110210.0,0.02637227]
[1761940465122,1.11337199,110220.0,110210.0,0.02637227]
[1761940465355,0.24133755,110220.0,110210.0,0.02637227]
[1761940465564,0.26433755,110220.0,110210.0,0.02637227]
[1761940465767,1.11337199,110220.0,110210.0,0.02637227]
[1761940465967,1.53788921,110220.0,110210.0,0.02737227]
[1761940466183,1.53788921,110220.0,110210.0,0.02637227]
[1761940466586,1.53888921,110220.0,110210.0,0.02637227]
[1761940466788,1.11437199,110220.0,110210.0,0.02637227]
[1761940466990,1.53888921,110220.0,110210.0,0.02637227]
[1761940467550,1.55312074,110220.0,110210.0,0.02637227]
[1761940467966,1.11437199,110220.0,110210.0,0.02637227]
[1761940468170,1.09137199,110220.0,110210.0,0.04262227]
[1761940468527,1.11864361,110220.0,110210.0,0.04262227]
[1761940469169,1.11864361,110220.0,110210.0,0.05454227]
[1761940469367,1.14164361,110220.0,110210.0,0.02637227]
[1761940470374,0.63424411,110220.0,110210.0,0.07845227]
[1761940470576,0.60697249,110220.0,110210.0,0.07845227]
[1761940470772,1.03148971,110220.0,110210.0,0.07845227]
[1761940471090,1.0457207,110220.0,110210.0,0.07845227]
[1761940471768,1.0447207,110220.0,110210.0,0.07845227]
[1761940471974,1.0447207,110220.0,110210.0,0.08345227]
[1761940472181,1.0600607,110220.0,110210.0,0.05954227]
[1761940472609,1.09624298,110220.0,110210.0,0.05954227]
[1761940473263,1.09624298,110220.0,110210.0,0.05454227]
[1761940473440,1.09624298,110220.0,110210.0,0.05554227]
[1761940475096,1.5437602,110220.0,110210.0,0.02737227]
[1761940475307,1.11924298,110220.0,110210.0,0.02737227]
[1761940475513,1.14651462,110220.0,110210.0,0.02737227]
[1761940476166,1.14651462,110220.0,110210.0,0.02637227]
[1761940476871,1.57203184,110220.0,110210.0,0.02637227]
[1761940478504,1.12451462,110220.0,110210.0,0.02637227]
[1761940479449,1.14751462,110220.0,110210.0,0.02637227]
[1761940479676,1.12451462,110220.0,110210.0,0.02637227]
[1761940480427,1.57203184,110220.0,110210.0,0.02637227]
[1761940480887,1.91203184,110220.0,110210.0,0.02637227]
[1761940481314,1.89780085,110220.0,110210.0,0.02637227]
[1761940482993,1.91203802,110220.0,110210.0,0.02637227]
[1761940483201,1.89780085,110220.0,110210.0,0.02637227]
[1761940484615,1.91203323,110220.0,110210.0,0.02637227]
[1761940488649,2.33655045,110220.0,110210.0,0.02637227]
[1761940488834,1.91203323,110220.0,110210.0,0.02637227]
[1761940489250,1.91203323,110220.0,110210.0,1e-08]
[1761940489878,1.90830714,110220.0,110210.0,1e-08]
[1761940490293,1.90830714,110220.0,110190.0,1e-08]
[1761940490294,0.01555,110200.0,110190.0,1e-08]
[1761940490504,5.24507117,110200.0,110190.0,1e-08]
[1761940490955,2.60644695,110190.0,110180.0,1e-08]
[1761940491217,5.15355027,110190.0,110180.0,1e-08]
[1761940491424,3.88008573,110190.0,110180.0,1e-08]
[1761940492495,3.88508573,110190.0,110180.0,1e-08]
[1761940492724,3.89419523,110190.0,110180.0,1e-08]
[1761940492944,3.89619523,110190.0,110180.0,1e-08]
[1761940495980,3.92133523,110190.0,110180.0,1e-08]
[1761940496310,3.92133523,110190.0,110180.0,0.00044162]
[1761940496508,3.49681801,110190.0,110180.0,0.00044162]
[1761940496707,1.13487632,110190.0,110180.0,0.00044162]
[1761940496933,0.24675129,110190.0,110180.0,0.00044162]
[1761940497127,1.09578573,110190.0,110180.0,0.01694162]
[1761940497374,0.66215901,110190.0,110180.0,0.01694162]
[1761940497706,0.69334129,110190.0,110180.0,0.04168162]
[1761940497911,1.08467623,110190.0,110180.0,0.04168162]
[1761940498066,1.08267623,110190.0,110180.0,0.01694162]
[1761940498403,0.69134129,110190.0,110180.0,0.01694162]
[1761940499379,0.71619129,110190.0,110180.0,0.00044162]
[1761940499591,1.14070851,110190.0,110180.0,0.00044162]
[1761940500526,0.64223712,110170.0,110160.0,1e-08]
[1761940500742,0.99778712,110170.0,110160.0,1e-08]
[1761940500953,3.08420742,110160.0,110150.0,1e-08]
[1761940501163,5.1452397,110160.0,110150.0,1e-08]
[1761940501373,3.6652628,110160.0,110150.0,1e-08]
[1761940501749,3.70951528,110160.0,110150.0,1e-08]
[1761940502164,3.71151528,110160.0,110150.0,1e-08]
[1761940502373,3.71851528,110160.0,110150.0,1e-08]
[1761940502721,3.61173871,110160.0,110150.0,1e-08]
[1761940503139,1.60173872,110160.0,110150.0,1e-08]
[1761940503549,1.09079009,110160.0,110150.0,1e-08]
[1761940503899,1.5744438,110160.0,110150.0,1e-08]
[1761940504099,1.2344438,110160.0,110150.0,1e-08]
[1761940504543,0.75079009,110160.0,110150.0,1e-08]
[1761940504959,1.2344438,110160.0,110150.0,1e-08]
[1761940507242,3.2344438,110160.0,110150.0,1e-08]
[1761940507450,4.14623124,110160.0,110150.0,1e-08]
[1761940507627,3.39793949,110160.0,110150.0,1e-08]
[1761940507835,3.39793949,110160.0,110150.0,0.00066267]
[1761940508253,2.60713638,110160.0,110150.0,0.00066267]
[1761940508462,3.35542813,110160.0,110150.0,0.00066267]
[1761940509715,3.35542813,110160.0,110150.0,1e-08]
[1761940510296,3.36967302,110160.0,110150.0,1e-08]
[1761940510494,3.35542813,110160.0,110150.0,1e-08]
[1761940510721,3.1705715,110160.0,110150.0,1e-08]
[1761940511076,3.3521256,110160.0,110150.0,1e-08]
[1761940511282,3.3663677,110160.0,110150.0,1e-08]
[1761940511508,3.39365837,110160.0,110150.0,1e-08]
[1761940511758,3.3663677,110160.0,110150.0,1e-08]
[1761940511955,3.45618671,110160.0,110150.0,1e-08]
[1761940512379,3.3663677,110160.0,110150.0,1e-08]
[1761940512797,4.12465944,110160.0,110150.0,1e-08]
[1761940513018,3.40330226,110160.0,110150.0,1e-08]
[1761940513225,3.42059741,110160.0,110150.0,1e-08]
[1761940513430,3.38330228,110160.0,110150.0,1e-08]
[1761940513638,3.40754772,110160.0,110150.0,1e-08]
[1761940514106,3.49736673,110160.0,110150.0,1e-08]
[1761940514332,3.38061315,110160.0,110150.0,1e-08]
[1761940517191,3.34443087,110160.0,110150.0,1e-08]
[1761940517414,3.38061315,110160.0,110150.0,1e-08]
[1761940517968,1.34443087,110160.0,110150.0,1e-08]
[1761940518195,0.23128912,110160.0,110150.0,0.02860001]
[1761940518392,0.2674714,110160.0,110150.0,0.02860001]
[1761940518619,1.01576315,110160.0,110150.0,1e-08]
[1761940518985,1.0015177,110160.0,110150.0,0.01612001]
[1761940519194,0.1977962,110160.0,110150.0,0.05130001]
[1761940519403,0.2127962,110160.0,110150.0,0.02860001]
[1761940519632,0.24897848,110160.0,110150.0,0.01248001]
[1761940519833,0.99527023,110160.0,110150.0,0.02860001]
[1761940520042,0.23197848,110160.0,110150.0,0.02860001]
[1761940520226,0.23197848,110160.0,110150.0,0.05330001]
[1761940520227,0.23297848,110160.0,110150.0,0.05330001]
[1761940520453,0.23197848,110160.0,110150.0,0.05330001]
[1761940520652,0.24697848,110160.0,110150.0,0.03060001]
[1761940520859,1.01704023,110160.0,110150.0,0.00200001]
[1761940521426,1.00279813,110160.0,110150.0,0.00200001]
[1761940521630,0.96661585,110160.0,110150.0,0.00200001]
[1761940521835,1.01704266,110160.0,110150.0,0.00200001]
[1761940524504,1.03128342,110160.0,110150.0,0.00200001]
[1761940525837,1.03128342,110160.0,110150.0,1e-08]
[1761940526218,1.03228342,110160.0,110150.0,1e-08]
[1761940531691,1.01051342,110160.0,110150.0,1e-08]
[1761940531890,1.01051342,110160.0,110150.0,0.01612001]
[1761940532291,0.99626889,110160.0,110150.0,1e-08]
[1761940532494,0.23297714,110160.0,110150.0,0.02860001]
[1761940532717,0.23297714,110160.0,110150.0,0.05130001]
[1761940532918,0.24797714,110160.0,110150.0,0.05130001]
[1761940533127,0.24797714,110160.0,110150.0,0.02860001]
[1761940533958,0.24797714,110160.0,110150.0,1e-08]
[1761940534800,0.99626889,110160.0,110150.0,0.01612001]
[1761940535360,0.98126889,110160.0,110150.0,0.05130001]
[1761940537154,0.19679486,110160.0,110150.0,0.23287059]
[1761940537337,0.19679486,110160.0,110150.0,0.05130001]
[1761940537957,0.19679486,110160.0,110150.0,0.23287059]
[1761940538159,0.19679486,110160.0,110150.0,0.05330001]
[1761940538518,0.19579486,110160.0,110150.0,0.05330001]
[1761940538934,0.01424076,110160.0,110150.0,0.34456501]
[1761940539138,0.19579486,110160.0,110150.0,0.14483738]
[1761940539297,0.98085661,110160.0,110150.0,0.00200001]
[1761940539499,1.01703889,110160.0,110150.0,0.00200001]
[1761940541433,1.01703889,110160.0,110150.0,1e-08]
[1761940542025,1.01803889,110160.0,110150.0,1e-08]
[1761940542247,1.03428349,110160.0,110150.0,1e-08]
[1761940542452,2.21239425,110160.0,110150.0,1e-08]
[1761940542661,1.37428349,110160.0,110150.0,1e-08]
[1761940543123,0.62599174,110160.0,110150.0,1e-08]
[1761940543281,1.37428349,110160.0,110150.0,1e-08]
[1761940546975,0.62599174,110160.0,110150.0,1e-08]
[1761940547186,1.01251349,110160.0,110150.0,0.01551001]
[1761940547932,1.37428349,110160.0,110150.0,1e-08]
[1761940552226,3.48372179,110160.0,110150.0,1e-08]
[1761940552375,3.50275247,110160.0,110150.0,1e-08]
[1761940552742,3.50075247,110160.0,110150.0,1e-08]
[1761940554831,3.50275247,110160.0,110150.0,1e-08]
[1761940555064,3.48651171,110160.0,110150.0,1e-08]
[1761940555295,3.50275378,110160.0,110150.0,1e-08]
[1761940555504,3.41093477,110160.0,110150.0,1e-08]
[1761940555732,0.1845541,110160.0,110150.0,0.05073001]
[1761940555948,0.94940585,110160.0,110150.0,0.01815706]
[1761940556165,0.93284585,110160.0,110150.0,0.01551001]
[1761940556386,0.1845541,110160.0,110150.0,0.03918001]
[1761940556593,0.1951141,110160.0,110150.0,0.01551001]
[1761940557277,0.1815541,110160.0,110150.0,0.03918001]
[1761940557495,0.22079702,110190.0,110160.0,0.1815541]
[1761940557713,0.22079702,110190.0,110170.0,0.18153762]
[1761940557714,0.1815245,110180.0,110170.0,0.18153762]
[1761940557928,0.21770678,110180.0,110170.0,0.19308762]
[1761940558136,0.21770678,110180.0,110170.0,0.02606]
[1761940558341,0.21326345,110190.0,110170.0,0.20759762]
[1761940558551,0.18152114,110180.0,110170.0,0.23126762]
[1761940559275,0.18152114,110180.0,110170.0,0.05273]
[1761940560156,0.22085114,110180.0,110170.0,0.003]
[1761940560361,0.19808114,110180.0,110170.0,0.003]
[1761940560570,1.00532517,110180.0,110170.0,0.003]
[1761940561222,0.25703342,110180.0,110170.0,0.003]
[1761940561362,1.00532517,110180.0,110170.0,0.003]
[1761940561554,1.00532517,110180.0,110140.0,0.2258862]
[1761940561555,0.18157058,110150.0,110140.0,0.2258862]
[1761940561758,0.18157058,110150.0,110140.0,0.21680707]
[1761940561978,0.18157058,110150.0,110140.0,0.23231707]
[1761940562188,0.19813058,110150.0,110140.0,0.02706]
[1761940562455,0.18157058,110150.0,110140.0,0.02706]
[1761940562656,0.18157058,110150.0,110140.0,0.02720391]
[1761940562657,0.19813058,110150.0,110140.0,0.02720391]
[1761940562865,0.23431286,110150.0,110140.0,0.00014391]
[1761940563072,0.25708286,110150.0,110140.0,0.00036486]
[1761940563268,0.25708286,110150.0,110140.0,0.00536486]
[1761940564171,0.21775286,110150.0,110140.0,0.04554486]
[1761940564792,0.21775286,110150.0,110140.0,0.04054486]
[1761940564998,0.21775286,110150.0,110140.0,0.03954486]
[1761940565177,0.21775286,110150.0,110140.0,0.04354486]
[1761940568744,0.18157058,110150.0,110140.0,0.22513193]
[1761940569153,0.18157058,110150.0,110140.0,0.04354486]
[1761940571338,0.19813058,110150.0,110140.0,0.01987486]
[1761940571536,0.74038057,110150.0,110140.0,0.00436486]
[1761940572625,0.71761057,110150.0,110140.0,0.00436486]
[1761940572821,0.73185481,110150.0,110140.0,0.00436486]
[1761940573433,0.69567253,110150.0,110140.0,0.00436486]
[1761940573970,0.73185481,110150.0,110140.0,0.00436486]
[1761940575151,0.53199379,110150.0,110140.0,0.00436486]
[1761940575417,0.72598437,110150.0,110140.0,0.00436486]
[1761940576416,0.72598437,110150.0,110140.0,0.00336486]
[1761940576614,0.72598437,110150.0,110140.0,0.00036486]
[1761940577021,1.06598437,110150.0,110140.0,0.00036486]
[1761940577330,1.06598437,110150.0,110140.0,0.00136486]
[1761940577891,1.06598437,110150.0,110140.0,0.00036486]
[1761940578285,1.06598437,110150.0,110140.0,0.00136486]
[1761940578497,3.06698437,110150.0,110140.0,0.00136486]
[1761940579530,3.15680338,110150.0,110120.0,0.0004]
[1761940579742,0.70729354,110130.0,110120.0,0.00088005]
[1761940580386,0.71350354,110130.0,110120.0,0.00088005]
[1761940581074,0.71350354,110130.0,110120.0,0.00188005]
[1761940581481,0.71350354,110130.0,110120.0,0.00488005]
[1761940582676,0.71350354,110130.0,110120.0,0.00188005]
[1761940583035,0.72154009,110130.0,110120.0,0.00088005]
[1761940583413,0.72775009,110130.0,110120.0,0.00088005]
[1761940583589,0.73682764,110130.0,110120.0,0.00088005]
[1761940583800,0.23824238,110130.0,110120.0,0.01630005]
[1761940584003,0.1958501,110130.0,110120.0,0.04088005]
[1761940584331,0.72154009,110130.0,110120.0,0.01630005]
[1761940584534,0.73578303,110130.0,110120.0,0.00088005]
[1761940584702,0.74199303,110130.0,110120.0,0.00088005]
[1761940585302,0.75100258,110130.0,110120.0,0.00132203]
[1761940586125,0.74199303,110130.0,110120.0,0.00132203]
[1761940586328,0.72957303,110130.0,110120.0,0.01674203]
[1761940586536,0.24627532,110130.0,110120.0,0.04132203]
[1761940586745,0.21009304,110130.0,110120.0,0.04132203]
[1761940588922,0.21009304,110130.0,110120.0,0.22294208]
[1761940590361,0.21009304,110130.0,110120.0,0.04132203]
[1761940590563,0.21009304,110130.0,110120.0,0.04232203]
[1761940590905,0.21009304,110130.0,110120.0,0.04532203]
[1761940592247,0.21009304,110130.0,110120.0,0.06348403]
[1761940592457,0.21009304,110130.0,110120.0,0.22694208]
[1761940593286,0.21009304,110130.0,110120.0,0.04532203]
[1761940594109,0.21009304,110130.0,110120.0,0.22694208]
[1761940594433,0.21009304,110130.0,110120.0,0.04532203]
[1761940596655,0.21009304,110130.0,110120.0,0.02074203]
[1761940596656,0.69960075,110130.0,110120.0,0.02074203]
[1761940597282,0.21009304,110130.0,110120.0,0.04532203]
[1761940597502,0.69339075,110130.0,110120.0,0.04532203]
[1761940598987,0.21009304,110130.0,110120.0,0.04532203]
[1761940599409,0.1958501,110130.0,110120.0,0.04532203]
[1761940599627,0.1958501,110130.0,110120.0,0.02074203]
[1761940599874,0.67914781,110130.0,110120.0,0.02074203]
[1761940600099,0.67914781,110130.0,110120.0,0.04532203]
[1761940600324,0.1958501,110130.0,110120.0,0.04532203]
[1761940601078,0.1958501,110130.0,110120.0,0.22694208]
[1761940602379,0.1958501,110130.0,110120.0,0.04532203]
[1761940603451,0.62131888,110130.0,110120.0,0.04532203]
[1761940603927,0.62131888,110130.0,110120.0,0.22694208]
[1761940604133,0.1958501,110130.0,110120.0,0.22694208]
[1761940605017,0.1958501,110130.0,110120.0,0.04532203]
[1761940605241,0.1958501,110130.0,110120.0,0.22694208]
[1761940605553,0.1958501,110130.0,110120.0,0.04532203]
[1761940606683,0.62131888,110130.0,110120.0,0.04532203]
[1761940607618,0.1958501,110130.0,110120.0,0.04532203]
[1761940609659,0.6855064,110130.0,110120.0,0.00532203]
[1761940609862,0.6855064,110130.0,110120.0,0.02037203]
[1761940611228,0.72789868,110130.0,110120.0,0.00532203]
[1761940611997,1.21134498,110130.0,110120.0,0.00532203]
[1761940612207,0.71365213,110130.0,110120.0,0.00532203]
[1761940612707,0.71365213,110130.0,110120.0,0.00432203]
[1761940613414,0.71365213,110130.0,110120.0,0.00132203]
[1761940613875,0.70844213,110130.0,110120.0,0.01637203]
[1761940614774,0.71044213,110130.0,110120.0,0.01637203]
[1761940614979,0.70944213,110130.0,110120.0,0.01637203]
[1761940615178,0.70744213,110130.0,110120.0,0.01637203]
[1761940615307,0.70744213,110130.0,110120.0,0.00132203]
[1761940615989,0.72068581,110130.0,110120.0,0.00132203]
[1761940617111,0.67829353,110130.0,110120.0,0.03896203]
[1761940617233,0.18060355,110130.0,110120.0,0.03896203]
[1761940618337,0.18060355,110130.0,110120.0,0.04196203]
[1761940618508,0.66404985,110130.0,110120.0,0.04196203]
[1761940618679,0.67025985,110130.0,110120.0,0.01937203]
[1761940619519,0.67025985,110130.0,110120.0,0.02037203]
[1761940620433,0.67025985,110130.0,110120.0,0.00532203]
[1761940620635,0.68450288,110130.0,110120.0,0.02037203]
[1761940622966,0.67829288,110130.0,110120.0,0.04296203]
[1761940623182,0.19484658,110130.0,110120.0,0.06112403]
[1761940623386,0.67829288,110130.0,110120.0,0.04296203]
[1761940625356,0.68450288,110130.0,110120.0,0.02037203]
[1761940625700,0.72068516,110130.0,110120.0,0.00532203]
[1761940625973,0.72689516,110130.0,110120.0,0.00532203]
[1761940627065,0.72068516,110130.0,110120.0,0.00532203]
[1761940627269,0.71447516,110130.0,110120.0,0.04296203]
[1761940627691,0.19484658,110130.0,110120.0,0.04296203]
[1761940627906,0.67829288,110130.0,110120.0,0.04296203]
[1761940628124,0.67829288,110130.0,110120.0,0.02037203]
[1761940628329,0.68450288,110130.0,110120.0,0.02037203]
[1761940628816,0.67829288,110130.0,110120.0,0.04296203]
[1761940629442,0.62035951,110130.0,110120.0,0.04296203]
[1761940630477,0.62035951,110130.0,110120.0,0.22458208]
[1761940630622,0.18060355,110130.0,110120.0,0.22458208]
[1761940630798,0.18160355,110130.0,110120.0,0.22458208]
[1761940631660,0.19584892,110130.0,110120.0,0.22458208]
[1761940631815,0.01424537,110130.0,110120.0,0.22458208]
[1761940632246,0.19584892,110130.0,110120.0,0.22458208]
[1761940632879,0.01424537,110130.0,110120.0,0.22458208]
[1761940633088,0.19584892,110130.0,110120.0,0.22458208]
[1761940633448,0.01424537,110130.0,110120.0,0.22458208]
[1761940634897,0.19584892,110130.0,110120.0,0.04296203]
[1761940636519,0.62136185,110130.0,110120.0,0.04296203]
[1761940636740,1.05308478,110130.0,110120.0,0.02037203]
[1761940636965,0.66375413,110130.0,110120.0,0.02037203]
[1761940637336,0.65754413,110130.0,110120.0,0.02037203]
[1761940637543,0.65754413,110130.0,110120.0,0.04397203]
[1761940638838,1.08926706,110130.0,110120.0,0.02037203]
[1761940639043,0.66375413,110130.0,110120.0,0.02037203]
[1761940639450,1.09547706,110130.0,110120.0,0.00532203]
[1761940639880,0.66375413,110130.0,110120.0,0.02055203]
[1761940640089,0.66375413,110130.0,110120.0,0.00532203]
[1761940640606,0.69104706,110130.0,110120.0,0.00532203]
[1761940640852,1.11655999,110130.0,110120.0,0.00532203]
[1761940641100,1.12276999,110130.0,110120.0,0.00532203]
[1761940642852,0.26553413,110130.0,110120.0,0.02055203]
[1761940643048,1.11655999,110130.0,110120.0,0.02055203]
[1761940643595,1.11655999,110130.0,110120.0,0.00532203]
[1761940643967,1.12276999,110130.0,110120.0,0.00532203]
[1761940645600,3.12276999,110130.0,110120.0,0.00532203]
[1761940646124,3.12276999,110130.0,110120.0,0.00232203]
[1761940646330,3.12276999,110130.0,110120.0,0.00132203]
[1761940646541,3.12476999,110130.0,110120.0,0.00132203]
[1761940647617,3.12576999,110130.0,110120.0,0.00132203]
[1761940649095,3.46576999,110130.0,110120.0,0.00132203]
[1761940650166,3.26992107,110130.0,110120.0,0.00132203]
[1761940650375,3.45152462,110130.0,110120.0,0.00132203]
[1761940650599,3.46577227,110130.0,110120.0,0.00132203]
[1761940654951,0.60232641,110130.0,110120.0,0.03918203]
[1761940655179,0.22614413,110130.0,110120.0,0.00132203]
[1761940655394,0.25428876,110130.0,110120.0,0.01655203]
[1761940655610,0.67980169,110130.0,110120.0,0.00132203]
[1761940655838,0.68601169,110130.0,110120.0,0.00132203]
[1761940656078,1.11152462,110130.0,110120.0,0.00132203]
[1761940656751,1.10952462,110130.0,110120.0,0.00132203]
[1761940656952,1.10852462,110130.0,110120.0,0.00132203]
[1761940658117,1.12276909,110130.0,110120.0,0.00132203]
[1761940658383,0.69104616,110130.0,110120.0,0.00132203]
[1761940658560,0.69725616,110130.0,110120.0,0.00132203]
[1761940659202,0.68301169,110130.0,110120.0,0.00132203]
[1761940660180,1.10231462,110130.0,110120.0,0.00132203]
[1761940660550,1.10852462,110130.0,110120.0,0.00132203]
[1761940662544,1.12276902,110130.0,110120.0,0.00132203]
[1761940664278,1.12897902,110130.0,110120.0,0.00132203]
[1761940665961,1.13097902,110130.0,110120.0,0.00132203]
[1761940666195,1.13197902,110130.0,110120.0,0.00132203]
[1761940666891,1.09579674,110130.0,110120.0,0.00132203]
[1761940667095,1.13197902,110130.0,110120.0,0.00132203]
[1761940673591,1.1516168,110130.0,110120.0,0.00132203]
[1761940674751,4.02399546,110130.0,110120.0,1e-08]
[1761940674956,3.49441912,110130.0,110120.0,1e-08]
[1761940677340,1.49441912,110130.0,110120.0,1e-08]
[1761940677923,1.50866424,110130.0,110120.0,1e-08]
[1761940678137,1.49161752,110130.0,110120.0,1e-08]